[Event "Hungarian Youth-ch II 2024"]
[Site "Szolnok"]
[Date "2024.04.03"]
[Round "5.1"]
[White "Hangyal, Dora"]
[Black "Balazs, Szabina Zoe"]
[Result "0-1"]
[ECO "A18"]
[WhiteElo "1704"]
[BlackElo "1756"]
[Annotator "NA RC"]
[PlyCount "56"]
[EventDate "2024.03.31"]
[EventType "swiss"]
[EventCountry "HUN"]
[SourceTitle "playchess.com"]
[Source "ChessBase"]
[SourceQuality "1"]
[TimeControl "5400+30"]

1. c4 {[%emt 0:00:03]} Nf6 {[%emt 0:00:18]} 2. Nc3 {[%emt 0:00:05]} e6 {[%emt 0:00:16]} 3. e4 {[%emt 0:00:04]} d5 {[%emt 0:00:21]} 4. e5 {[%emt 0:00:04]} d4 {[%emt 0:00:21]} 5. exf6 {[%emt 0:00:06]} dxc3 {[%emt 0:00:06]} 6. bxc3 {[%emt 0:00:06]} Qxf6 {[%emt 0:00:17]} 7. d4 {[%emt 0:00:05]} e5 {[%emt 0:00:32]} 8. Nf3 {[%emt 0:00:22]} Nc6 {[%emt 0:00:31]} 9. Bg5 {[%emt 0:00:47]} Qg6 {[%emt 0:01:49]} 10. d5 {[%emt 0:02:00]} Nb8 {[%emt 0:01:00]} 11. h4 {[%emt 0:00:51]} h6 {[%emt 0:00:58]} 12. Nxe5 {[%emt 0:00:38]} Qf5 {[%emt 0:04:41]} 13. Qe2 {[%emt 0:00:58]} hxg5 {[%emt 0:05:39]} 14. Ng6+ {[%emt 0:00:11]} Kd8 {[%emt 0:00:19]} 15. Nxh8 {[%emt 0:00:16]} g4 {[%emt 0:00:58]} 16. Qd3 {[%emt 0:00:24]} Qh5 {[%emt 0:00:58]} 17. Nxf7+ {[%emt 0:03:01]} Qxf7 {[%emt 0:00:10]} 18. Be2 {[%emt 0:00:21]} Na6 {[%emt 0:04:32]} 19. h5 {[%emt 0:04:45]} Bf5 {[%emt 0:05:00]} 20. Qe3 {[%emt 0:00:46]} Kd7 {[%emt 0:02:55]} 21. Kf1 {[%emt 0:05:16]} Nc5 {[%emt 0:06:11]} 22. f3 {[%emt 0:11:32]} Re8 {[%emt 0:15:21]} 23. Qf2 {[%emt 0:02:59]} gxf3 {[%emt 0:03:56]} 24. Qxf3 {[%emt 0:00:26]} Ne4 {[%emt 0:01:00]} 25. Rd1 {[%emt 0:01:24]} Bd6 {[%emt 0:01:08]} 26. Kg1 {[%emt 0:04:34]} Bc5+ {[%emt 0:09:27]} 27. Kh2 {[%emt 0:04:20]} Qf6 {[%emt 0:01:33]} 28. Rhf1 {[%emt 0:01:01]} Qh4+ 0-1

[Event "Hungarian Youth-ch II 2024"]
[Site "Szolnok"]
[Date "2024.04.03"]
[Round "5.2"]
[White "Kiss, Inez"]
[Black "Biro, Beata"]
[Result "0-1"]
[ECO "B20"]
[WhiteElo "1806"]
[BlackElo "1760"]
[Annotator "NA RC"]
[PlyCount "100"]
[EventDate "2024.03.31"]
[EventType "swiss"]
[EventCountry "HUN"]
[SourceTitle "playchess.com"]
[Source "ChessBase"]
[SourceQuality "1"]
[TimeControl "5400+30"]

1. e4 {[%emt 0:01:27]} c5 {[%emt 0:00:09]} 2. c4 {[%emt 0:00:29]} Nc6 {[%emt 0:00:30]} 3. Nc3 {[%emt 0:00:06]} d6 {[%emt 0:00:50]} 4. g3 {[%emt 0:00:06]} g6 {[%emt 0:00:37]} 5. Bg2 {[%emt 0:00:07]} Bg7 {[%emt 0:00:10]} 6. Nge2 {[%emt 0:00:10]} e5 {[%emt 0:01:13]} 7. d3 {[%emt 0:00:11]} Nge7 {[%emt 0:00:43]} 8. O-O {[%emt 0:00:14]} O-O {[%emt 0:00:54]} 9. a3 {[%emt 0:00:13]} Bd7 {[%emt 0:03:05]} 10. Rb1 {[%emt 0:00:21]} a6 {[%emt 0:04:13]} 11. b4 {[%emt 0:00:50]} Rb8 {[%emt 0:03:46]} 12. b5 {[%emt 0:11:38]} Nd4 {[%emt 0:02:33]} 13. a4 {[%emt 0:07:49]} Qc8 {[%emt 0:05:38]} 14. Nxd4 {[%emt 0:03:26]} exd4 {[%emt 0:00:36]} 15. Ne2 {[%emt 0:02:04]} Bh3 {[%emt 0:06:13]} 16. bxa6 {[%emt 0:01:23]} Bxg2 {[%emt 0:01:00]} 17. axb7 {[%emt 0:01:32]} Rxb7 {[%emt 0:04:17]} 18. Rxb7 {[%emt 0:02:10]} Bxf1 {[%emt 0:06:13]} 19. Rxe7 {[%emt 0:02:46]} Bxe2 {[%emt 0:00:40]} 20. Qxe2 {[%emt 0:00:06]} Qa6 {[%emt 0:00:27]} 21. Bf4 {[%emt 0:18:43]} Rd8 {[%emt 0:04:48]} 22. Qb2 {[%emt 0:06:40]} Bf8 {[%emt 0:07:57]} 23. Qb7 {[%emt 0:03:45]} Qxb7 {[%emt 0:04:41]} 24. Rxb7 {[%emt 0:00:35]} Ra8 {[%emt 0:00:03]} 25. Kf1 {[%emt 0:05:13]} Rxa4 {[%emt 0:00:32]} 26. Rb8 {[%emt 0:10:06]} Kg7 {[%emt 0:00:22]} 27. e5 {[%emt 0:05:38]} g5 {[%emt 0:03:06]} 28. Bxg5 {[%emt 0:05:42]} dxe5 {[%emt 0:00:11]} 29. Bd8 {[%emt 0:10:06]} e4 {[%emt 0:01:57]} 30. Ke2 {[%emt 0:01:02]} Ra2+ {[%emt 0:00:07]} 31. Ke1 {[%emt 0:00:16]} exd3 {[%emt 0:00:08]} 32. Rb3 {[%emt 0:00:43]} Rc2 {[%emt 0:00:42]} 33. Rxd3 {[%emt 0:00:27]} Rxc4 {[%emt 0:00:02]} 34. Bg5 {[%emt 0:00:43]} Kg6 {[%emt 0:00:53]} 35. h4 {[%emt 0:00:32]} Bh6 {[%emt 0:01:15]} 36. Bxh6 {[%emt 0:00:09]} Kxh6 {[%emt 0:00:02]} 37. Rf3 {[%emt 0:00:46]} Kg6 {[%emt 0:00:09]} 38. Kd2 {[%emt 0:00:06]} h5 {[%emt 0:00:47]} 39. Ra3 {[%emt 0:00:34]} Kf5 {[%emt 0:03:15]} 40. Rf3+ {[%emt 0:00:18]} Ke6 {[%emt 0:00:03]} 41. Ra3 {[%emt 0:00:19]} Ke5 {[%emt 0:00:12]} 42. Rf3 {[%emt 0:00:31]} f5 {[%emt 0:00:11]} 43. Ra3 {[%emt 0:00:28]} Rc3 {[%emt 0:01:40]} 44. Rxc3 {[%emt 0:01:19]} dxc3+ {[%emt 0:00:01]} 45. Kxc3 {[%emt 0:00:08]} Ke4 {[%emt 0:00:04]} 46. Kc4 {[%emt 0:00:13]} Kf3 {[%emt 0:00:06]} 47. Kxc5 {[%emt 0:00:01]} Kxf2 {[%emt 0:00:10]} 48. Kd4 {[%emt 0:00:04]} Kxg3 {[%emt 0:00:10]} 49. Ke3 {[%emt 0:00:38]} f4+ {[%emt 0:00:20]} 50. Ke2 {[%emt 0:00:04]} Kg2 {[%emt 0:00:07]} 0-1

[Event "Hungarian Youth-ch II 2024"]
[Site "Szolnok"]
[Date "2024.04.03"]
[Round "5.3"]
[White "Farkas, Sara"]
[Black "Vadkerti, Bori"]
[Result "1-0"]
[ECO "E91"]
[WhiteElo "1707"]
[BlackElo "1657"]
[Annotator "NA RC"]
[PlyCount "63"]
[EventDate "2024.03.31"]
[EventType "swiss"]
[EventCountry "HUN"]
[SourceTitle "playchess.com"]
[Source "ChessBase"]
[SourceQuality "1"]
[TimeControl "5400+30"]

1. d4 {[%emt 0:00:03]} Nf6 {[%emt 0:00:10]} 2. c4 {[%emt 0:00:08]} g6 {[%emt 0:00:23]} 3. Nf3 {[%emt 0:00:28]} Bg7 {[%emt 0:00:38]} 4. Nc3 {[%emt 0:00:35]} O-O {[%emt 0:00:53]} 5. e4 {[%emt 0:03:22]} d6 {[%emt 0:02:08]} 6. Be2 {[%emt 0:07:24]} Nbd7 {[%emt 0:04:04]} 7. O-O {[%emt 0:03:20]} e5 {[%emt 0:03:28]} 8. d5 {[%emt 0:04:03]} a5 {[%emt 0:03:27]} 9. Qc2 {[%emt 0:08:22]} Nc5 {[%emt 0:05:13]} 10. Be3 {[%emt 0:02:31]} Nfd7 {[%emt 0:03:05]} 11. Nd2 {[%emt 0:02:49]} f5 {[%emt 0:01:31]} 12. f3 {[%emt 0:01:16]} f4 {[%emt 0:00:30]} 13. Bf2 {[%emt 0:00:45]} g5 {[%emt 0:01:46]} 14. b3 {[%emt 0:04:19]} h5 {[%emt 0:01:54]} 15. a3 {[%emt 0:01:59]} Nf6 {[%emt 0:01:27]} 16. Rab1 {[%emt 0:07:22]} g4 {[%emt 0:01:12]} 17. b4 {[%emt 0:02:19]} axb4 {[%emt 0:00:32]} 18. axb4 {[%emt 0:00:10]} Ncd7 {[%emt 0:00:13]} 19. c5 {[%emt 0:03:51]} Rf7 {[%emt 0:04:49]} 20. cxd6 {[%emt 0:07:18]} cxd6 {[%emt 0:00:33]} 21. Nb5 {[%emt 0:01:16]} Nf8 {[%emt 0:01:20]} 22. Nc4 {[%emt 0:02:25]} Rd7 {[%emt 0:03:55]} 23. Nb6 {[%emt 0:00:45]} Rb8 {[%emt 0:03:04]} 24. Nxd7 {[%emt 0:00:10]} Qxd7 {[%emt 0:00:35]} 25. Qc7 {[%emt 0:00:53]} Qxc7 {[%emt 0:00:39]} 26. Nxc7 {[%emt 0:00:07]} Bd7 {[%emt 0:00:59]} 27. Bb5 {[%emt 0:01:39]} Bxb5 {[%emt 0:01:03]} 28. Nxb5 {[%emt 0:00:08]} Rd8 {[%emt 0:00:22]} 29. Rfc1 {[%emt 0:01:25]} gxf3 {[%emt 0:02:04]} 30. gxf3 {[%emt 0:00:11]} N8h7 {[%emt 0:00:54]} 31. Rc7 {[%emt 0:01:37]} Ng5 {[%emt 0:00:33]} 32. Kg2 {[%emt 0:01:26]} 1-0

[Event "Hungarian Youth-ch II 2024"]
[Site "Szolnok"]
[Date "2024.04.03"]
[Round "5.4"]
[White "Horvath, Adel"]
[Black "Hangyal, Anna"]
[Result "0-1"]
[ECO "A20"]
[WhiteElo "1681"]
[BlackElo "1719"]
[Annotator "NA RC"]
[PlyCount "144"]
[EventDate "2024.03.31"]
[EventType "swiss"]
[EventCountry "HUN"]
[SourceTitle "playchess.com"]
[Source "ChessBase"]
[SourceQuality "1"]
[TimeControl "5400+30"]

1. c4 {[%emt 0:00:03]} e5 {[%emt 0:00:45]} 2. d3 {[%emt 0:02:07]} Nf6 {[%emt 0:00:14]} 3. Nf3 {[%emt 0:00:10]} Nc6 {[%emt 0:00:10]} 4. g3 {[%emt 0:00:24]} d5 {[%emt 0:00:42]} 5. cxd5 {[%emt 0:00:26]} Nxd5 {[%emt 0:00:09]} 6. Bg2 {[%emt 0:00:50]} Bc5 {[%emt 0:01:17]} 7. O-O {[%emt 0:01:06]} O-O {[%emt 0:00:21]} 8. Nc3 {[%emt 0:00:22]} Be6 {[%emt 0:01:14]} 9. Bd2 {[%emt 0:02:54]} f6 {[%emt 0:17:19]} 10. Qb3 {[%emt 0:20:26]} Bb6 {[%emt 0:01:05]} 11. Nxd5 {[%emt 0:12:38]} Bxd5 {[%emt 0:00:40]} 12. Qd1 {[%emt 0:00:21]} Qd7 {[%emt 0:02:41]} 13. a3 {[%emt 0:06:11]} Rad8 {[%emt 0:01:59]} 14. Qc1 {[%emt 0:01:58]} Rfe8 {[%emt 0:10:08]} 15. Rd1 {[%emt 0:11:31]} Kh8 {[%emt 0:06:18]} 16. e3 {[%emt 0:08:43]} Bb3 {[%emt 0:00:27]} 17. Re1 {[%emt 0:00:13]} Qxd3 {[%emt 0:00:41]} 18. Bc3 {[%emt 0:02:00]} Qd7 {[%emt 0:17:34]} 19. a4 {[%emt 0:07:46]} a5 {[%emt 0:02:29]} 20. Ra3 {[%emt 0:02:08]} Bd5 {[%emt 0:00:45]} 21. Rd1 {[%emt 0:02:44]} Qf7 {[%emt 0:03:18]} 22. g4 {[%emt 0:02:01]} Bb3 {[%emt 0:02:20]} 23. Rxd8 {[%emt 0:02:52]} Rxd8 {[%emt 0:00:07]} 24. Nd2 {[%emt 0:00:21]} Be6 {[%emt 0:00:37]} 25. h3 {[%emt 0:00:54]} Bc5 {[%emt 0:02:56]} 26. Ra1 {[%emt 0:00:30]} Nb4 {[%emt 0:02:37]} 27. Bxb4 {[%emt 0:04:02]} Bxb4 {[%emt 0:00:13]} 28. Ne4 {[%emt 0:00:28]} Bb3 {[%emt 0:00:52]} 29. Qf1 {[%emt 0:00:30]} c6 {[%emt 0:02:18]} 30. Qe2 {[%emt 0:02:00]} Bc4 {[%emt 0:00:35]} 31. Qf3 {[%emt 0:01:42]} Bd5 {[%emt 0:02:55]} 32. Qd1 {[%emt 0:01:58]} Qe7 {[%emt 0:00:43]} 33. Qc2 {[%emt 0:00:55]} Bxe4 {[%emt 0:01:25]} 34. Bxe4 {[%emt 0:00:26]} Rd2 {[%emt 0:00:28]} 35. Qb3 {[%emt 0:00:50]} Qd6 {[%emt 0:01:17]} 36. Qf7 {[%emt 0:00:58]} Qd7 {[%emt 0:05:14]} 37. Qb3 {[%emt 0:01:06]} h5 {[%emt 0:04:52]} 38. gxh5 {[%emt 0:01:23]} Qxh3 {[%emt 0:00:12]} 39. Qf7 {[%emt 0:00:24]} Qg4+ {[%emt 0:00:15]} 40. Bg2 {[%emt 0:00:08]} Bc5 {[%emt 0:04:11]} 41. Qe8+ {[%emt 0:01:48]} Kh7 {[%emt 0:00:08]} 42. Re1 {[%emt 0:00:16]} Rxb2 {[%emt 0:01:20]} 43. Qd8 {[%emt 0:00:20]} Qxh5 {[%emt 0:02:15]} 44. Be4+ {[%emt 0:00:27]} f5 {[%emt 0:00:15]} 45. Bg2 {[%emt 0:00:13]} Qg4 {[%emt 0:00:31]} 46. Qxa5 {[%emt 0:00:17]} b6 {[%emt 0:00:39]} 47. Qc3 {[%emt 0:00:34]} Qb4 {[%emt 0:02:44]} 48. Qc1 {[%emt 0:00:39]} Ra2 {[%emt 0:01:28]} 49. Bxc6 {[%emt 0:00:41]} Qg4+ {[%emt 0:00:11]} 50. Bg2 {[%emt 0:00:34]} Kh8 {[%emt 0:00:40]} 51. Qd1 {[%emt 0:01:07]} Rxa4 {[%emt 0:00:47]} 52. Qxg4 {[%emt 0:00:30]} Rxg4 {[%emt 0:00:03]} 53. Kf1 {[%emt 0:00:06]} b5 {[%emt 0:00:41]} 54. Rc1 {[%emt 0:00:19]} Ba3 {[%emt 0:00:24]} 55. Ra1 {[%emt 0:00:23]} b4 {[%emt 0:00:06]} 56. Bd5 {[%emt 0:00:14]} Bb2 {[%emt 0:00:44]} 57. Rb1 {[%emt 0:00:08]} Bc3 {[%emt 0:00:05]} 58. Ke2 {[%emt 0:00:25]} Rg6 {[%emt 0:00:24]} 59. Bb3 {[%emt 0:00:35]} Rd6 {[%emt 0:00:23]} 60. Kf1 {[%emt 0:00:28]} g6 {[%emt 0:00:18]} 61. Kg2 {[%emt 0:00:26]} Kg7 {[%emt 0:00:22]} 62. Kf1 {[%emt 0:00:39]} Kf6 {[%emt 0:00:15]} 63. Kg2 {[%emt 0:00:09]} f4 {[%emt 0:00:40]} 64. exf4 {[%emt 0:00:41]} exf4 {[%emt 0:00:07]} 65. f3 {[%emt 0:00:39]} Rd2+ {[%emt 0:00:56]} 66. Kf1 {[%emt 0:00:16]} Kf5 {[%emt 0:01:11]} 67. Bf7 {[%emt 0:00:45]} g5 {[%emt 0:00:53]} 68. Bc4 {[%emt 0:00:20]} g4 {[%emt 0:00:33]} 69. fxg4+ {[%emt 0:00:16]} Kxg4 {[%emt 0:00:07]} 70. Bf7 {[%emt 0:00:23]} Kg3 {[%emt 0:00:21]} 71. Bc4 {[%emt 0:01:21]} f3 {[%emt 0:00:37]} 72. Bb5 {[%emt 0:00:23]} Rh2 {[%emt 0:00:22]} 0-1

[Event "Hungarian Youth-ch II 2024"]
[Site "Szolnok"]
[Date "2024.04.03"]
[Round "5.5"]
[White "Illes-Nagy, Nora"]
[Black "Biro, Csilla"]
[Result "1-0"]
[ECO "D35"]
[WhiteElo "1757"]
[BlackElo "1626"]
[Annotator "NA RC"]
[PlyCount "75"]
[EventDate "2024.03.31"]
[EventType "swiss"]
[EventCountry "HUN"]
[SourceTitle "playchess.com"]
[Source "ChessBase"]
[SourceQuality "1"]
[TimeControl "5400+30"]

1. d4 {[%emt 0:00:02]} e6 {[%emt 0:00:09]} 2. c4 {[%emt 0:00:13]} d5 {[%emt 0:00:23]} 3. Nc3 {[%emt 0:00:21]} Nf6 {[%emt 0:00:33]} 4. cxd5 {[%emt 0:00:20]} exd5 {[%emt 0:00:32]} 5. Bg5 {[%emt 0:00:21]} Be7 {[%emt 0:01:30]} 6. e3 {[%emt 0:01:33]} O-O {[%emt 0:04:49]} 7. Qc2 {[%emt 0:01:26]} Be6 {[%emt 0:02:32]} 8. Bd3 {[%emt 0:02:06]} h6 {[%emt 0:00:20]} 9. Bh4 {[%emt 0:01:44]} Nbd7 {[%emt 0:18:43]} 10. Nge2 {[%emt 0:04:42]} Nb6 {[%emt 0:02:04]} 11. O-O {[%emt 0:02:31]} c6 {[%emt 0:03:04]} 12. Nf4 {[%emt 0:07:39]} Qd7 {[%emt 0:07:45]} 13. Bg3 {[%emt 0:04:35]} Bd6 {[%emt 0:06:07]} 14. Nce2 {[%emt 0:05:44]} Bg4 {[%emt 0:11:58]} 15. h3 {[%emt 0:05:49]} Bxe2 {[%emt 0:04:01]} 16. Nxe2 {[%emt 0:01:35]} Nh5 {[%emt 0:01:23]} 17. Bxd6 {[%emt 0:02:04]} Qxd6 {[%emt 0:00:22]} 18. Rab1 {[%emt 0:01:51]} Rfe8 {[%emt 0:04:31]} 19. b4 {[%emt 0:03:36]} Rac8 {[%emt 0:03:46]} 20. Qc5 {[%emt 0:01:33]} Qc7 {[%emt 0:04:07]} 21. Rfc1 {[%emt 0:03:58]} Qb8 {[%emt 0:03:15]} 22. b5 {[%emt 0:07:18]} cxb5 {[%emt 0:04:44]} 23. Qxb5 {[%emt 0:00:26]} Red8 {[%emt 0:02:26]} 24. Bf5 {[%emt 0:03:24]} Rc7 {[%emt 0:02:08]} 25. Rxc7 {[%emt 0:02:53]} Qxc7 {[%emt 0:00:09]} 26. Rc1 {[%emt 0:00:47]} Qb8 {[%emt 0:02:59]} 27. Rc5 {[%emt 0:04:06]} Kf8 {[%emt 0:05:28]} 28. Rc1 {[%emt 0:03:44]} Kg8 {[%emt 0:00:48]} 29. Qc5 {[%emt 0:01:09]} Na8 {[%emt 0:01:26]} 30. Rc2 {[%emt 0:06:38]} Kh8 {[%emt 0:02:09]} 31. Nc1 {[%emt 0:01:09]} Nf6 {[%emt 0:00:27]} 32. Nd3 {[%emt 0:02:13]} Kg8 {[%emt 0:00:52]} 33. Ne5 {[%emt 0:00:46]} Rf8 {[%emt 0:00:13]} 34. Qe7 {[%emt 0:01:07]} Kh8 {[%emt 0:00:56]} 35. Nxf7+ {[%emt 0:00:13]} Kg8 {[%emt 0:00:30]} 36. Ne5 {[%emt 0:00:20]} Kh8 {[%emt 0:00:08]} 37. Qxf8+ {[%emt 0:00:26]} Qxf8 {[%emt 0:00:01]} 38. Ng6+ {[%emt 0:00:07]} 1-0

[Event "Hungarian Youth-ch II 2024"]
[Site "Szolnok"]
[Date "2024.04.03"]
[Round "5.6"]
[White "Ferenczy, Nora"]
[Black "Miko, Biborka"]
[Result "0-1"]
[ECO "A53"]
[WhiteElo "1699"]
[BlackElo "1549"]
[Annotator "NA RC"]
[PlyCount "68"]
[EventDate "2024.03.31"]
[EventType "swiss"]
[EventCountry "HUN"]
[SourceTitle "playchess.com"]
[Source "ChessBase"]
[SourceQuality "1"]
[TimeControl "5400+30"]

1. d4 {[%emt 0:00:02]} Nf6 {[%emt 0:00:07]} 2. c4 {[%emt 0:00:03]} d6 {[%emt 0:00:11]} 3. Nc3 {[%emt 0:00:17]} Nbd7 {[%emt 0:00:32]} 4. e4 {[%emt 0:00:30]} e5 {[%emt 0:00:11]} 5. Nf3 {[%emt 0:00:57]} Be7 {[%emt 0:01:12]} 6. Be2 {[%emt 0:00:33]} O-O {[%emt 0:00:43]} 7. O-O {[%emt 0:01:42]} c6 {[%emt 0:01:46]} 8. d5 {[%emt 0:02:48]} Nc5 {[%emt 0:02:23]} 9. Qc2 {[%emt 0:00:50]} cxd5 {[%emt 0:02:02]} 10. cxd5 {[%emt 0:00:20]} a6 {[%emt 0:05:42]} 11. Be3 {[%emt 0:01:36]} Qc7 {[%emt 0:02:41]} 12. h3 {[%emt 0:00:56]} Ncxe4 {[%emt 0:01:17]} 13. Qb3 {[%emt 0:11:42]} Nxc3 {[%emt 0:01:36]} 14. bxc3 {[%emt 0:00:10]} b5 {[%emt 0:02:35]} 15. Rfd1 {[%emt 0:05:18]} Bb7 {[%emt 0:04:52]} 16. Rab1 {[%emt 0:11:59]} Rab8 {[%emt 0:04:49]} 17. Nh2 {[%emt 0:12:19]} Rfc8 {[%emt 0:09:32]} 18. Rbc1 {[%emt 0:01:20]} Ba8 {[%emt 0:07:12]} 19. Bf3 {[%emt 0:09:04]} Qb7 {[%emt 0:05:59]} 20. Ng4 {[%emt 0:01:53]} a5 {[%emt 0:01:25]} 21. Nxf6+ {[%emt 0:01:51]} Bxf6 {[%emt 0:00:09]} 22. Qa3 {[%emt 0:02:38]} b4 {[%emt 0:03:17]} 23. Qxa5 {[%emt 0:02:14]} bxc3 {[%emt 0:00:36]} 24. Bg4 {[%emt 0:01:57]} c2 {[%emt 0:02:02]} 25. Rd3 {[%emt 0:04:08]} Re8 {[%emt 0:06:47]} 26. Qa3 {[%emt 0:07:57]} e4 {[%emt 0:04:24]} 27. Rb3 {[%emt 0:02:04]} Qc7 {[%emt 0:03:52]} 28. Bf4 {[%emt 0:06:36]} Bxd5 {[%emt 0:09:32]} 29. Bxd6 {[%emt 0:02:02]} Rxb3 {[%emt 0:00:57]} 30. axb3 {[%emt 0:00:12]} Qc3 {[%emt 0:02:46]} 31. Bd7 {[%emt 0:05:59]} Rd8 {[%emt 0:04:24]} 32. Be7 {[%emt 0:01:58]} Rxd7 {[%emt 0:01:37]} 33. Bxf6 {[%emt 0:01:04]} gxf6 {[%emt 0:00:18]} 34. Qa4 {[%emt 0:01:25]} Qd2 {[%emt 0:00:59]} 0-1

[Event "Hungarian Youth-ch II 2024"]
[Site "Szolnok"]
[Date "2024.04.03"]
[Round "5.8"]
[White "Vasarhelyi, Szurina"]
[Black "Janosi, Boglarka"]
[Result "0-1"]
[ECO "B23"]
[WhiteElo "1446"]
[BlackElo "1466"]
[Annotator "NA RC"]
[PlyCount "86"]
[EventDate "2024.03.31"]
[EventType "swiss"]
[EventCountry "HUN"]
[SourceTitle "playchess.com"]
[Source "ChessBase"]
[SourceQuality "1"]
[TimeControl "5400+30"]

1. e4 {[%emt 0:00:03]} c5 {[%emt 0:00:07]} 2. Nc3 {[%emt 0:00:08]} d6 {[%emt 0:00:14]} 3. g3 {[%emt 0:00:50]} Nc6 {[%emt 0:00:23]} 4. Bg2 {[%emt 0:00:56]} Nf6 {[%emt 0:02:15]} 5. h3 {[%emt 0:03:42]} e6 {[%emt 0:01:13]} 6. d3 {[%emt 0:02:44]} Be7 {[%emt 0:01:47]} 7. Nge2 {[%emt 0:04:13]} Bd7 {[%emt 0:02:52]} 8. Be3 {[%emt 0:00:55]} Qc7 {[%emt 0:00:57]} 9. Qd2 {[%emt 0:02:04]} O-O {[%emt 0:02:48]} 10. O-O {[%emt 0:03:59]} Qc8 {[%emt 0:01:06]} 11. Kh2 {[%emt 0:01:45]} a6 {[%emt 0:02:46]} 12. a4 {[%emt 0:03:38]} Qc7 {[%emt 0:08:25]} 13. Nf4 {[%emt 0:14:38]} h6 {[%emt 0:05:50]} 14. Na2 {[%emt 0:08:27]} Nd4 {[%emt 0:05:27]} 15. Bxd4 {[%emt 0:02:10]} cxd4 {[%emt 0:00:21]} 16. Nc1 {[%emt 0:02:03]} Nh7 {[%emt 0:05:08]} 17. h4 {[%emt 0:03:40]} Nf6 {[%emt 0:02:48]} 18. Bh3 {[%emt 0:01:00]} Rac8 {[%emt 0:03:24]} 19. Qb4 {[%emt 0:13:48]} e5 {[%emt 0:07:17]} 20. Bxd7 {[%emt 0:03:53]} Qxd7 {[%emt 0:00:25]} 21. Nd5 {[%emt 0:01:24]} Nxd5 {[%emt 0:00:24]} 22. exd5 {[%emt 0:00:11]} Rxc2 {[%emt 0:01:31]} 23. Qb3 {[%emt 0:00:21]} Rc5 {[%emt 0:01:54]} 24. Qa2 {[%emt 0:01:26]} Qf5 {[%emt 0:06:44]} 25. Kg2 {[%emt 0:03:51]} Rfc8 {[%emt 0:03:32]} 26. Qb3 {[%emt 0:03:00]} R5c7 {[%emt 0:01:22]} 27. Na2 {[%emt 0:02:20]} Qg6 {[%emt 0:07:09]} 28. Rh1 {[%emt 0:00:49]} f5 {[%emt 0:01:24]} 29. Rac1 {[%emt 0:02:38]} Rxc1 {[%emt 0:01:23]} 30. Rxc1 {[%emt 0:00:15]} Rxc1 {[%emt 0:00:11]} 31. Nxc1 {[%emt 0:00:14]} Bxh4 {[%emt 0:00:12]} 32. Ne2 {[%emt 0:01:18]} f4 {[%emt 0:00:37]} 33. Kh3 {[%emt 0:01:21]} Bg5 {[%emt 0:02:40]} 34. g4 {[%emt 0:00:04]} Kh7 {[%emt 0:01:38]} 35. Qxb7 {[%emt 0:02:04]} Qxd3+ {[%emt 0:00:14]} 36. Kg2 {[%emt 0:01:58]} f3+ {[%emt 0:00:05]} 37. Kg1 {[%emt 0:00:35]} fxe2 {[%emt 0:00:07]} 38. Qd7 {[%emt 0:01:11]} e1=Q+ 39. Kg2 {[%emt 0:00:29]} Qde4+ {[%emt 0:02:36]} 40. Kg3 {[%emt 0:00:21]} Q1h1 {[%emt 0:00:20]} 41. Qf5+ {[%emt 0:00:42]} Qxf5 {[%emt 0:00:19]} 42. gxf5 {[%emt 0:00:00]} Bf4+ {[%emt 0:00:24]} 43. Kg4 {[%emt 0:00:00]} h5# {[%emt 0:00:11]} 0-1

[Event "Hungarian Youth-ch II 2024"]
[Site "Szolnok"]
[Date "2024.04.04"]
[Round "6.1"]
[White "Balazs, Szabina Zoe"]
[Black "Farkas, Sara"]
[Result "1/2-1/2"]
[ECO "C02"]
[WhiteElo "1756"]
[BlackElo "1707"]
[Annotator "NA RC"]
[PlyCount "53"]
[EventDate "2024.03.31"]
[EventType "swiss"]
[EventCountry "HUN"]
[SourceTitle "playchess.com"]
[Source "ChessBase"]
[SourceQuality "1"]
[TimeControl "5400+30"]

1. e4 {[%emt 0:00:02]} e6 {[%emt 0:00:06]} 2. d4 {[%emt 0:00:10]} d5 {[%emt 0:00:06]} 3. e5 {[%emt 0:00:12]} c5 {[%emt 0:00:09]} 4. c3 {[%emt 0:00:15]} Nc6 {[%emt 0:00:11]} 5. Nf3 {[%emt 0:00:23]} Qb6 {[%emt 0:00:12]} 6. a3 {[%emt 0:02:01]} cxd4 {[%emt 0:03:04]} 7. cxd4 {[%emt 0:00:13]} Nh6 {[%emt 0:02:22]} 8. Nc3 {[%emt 0:03:29]} Nf5 {[%emt 0:04:57]} 9. Na4 {[%emt 0:00:39]} Qd8 {[%emt 0:04:49]} 10. h4 {[%emt 0:06:18]} Be7 {[%emt 0:06:55]} 11. g3 {[%emt 0:02:13]} a6 {[%emt 0:05:03]} 12. Bh3 {[%emt 0:07:20]} b5 {[%emt 0:06:55]} 13. Nc3 {[%emt 0:02:45]} O-O {[%emt 0:06:02]} 14. h5 {[%emt 0:08:52]} b4 {[%emt 0:12:16]} 15. Ne2 {[%emt 0:07:48]} bxa3 {[%emt 0:04:43]} 16. bxa3 {[%emt 0:01:08]} Qa5+ {[%emt 0:02:33]} 17. Bd2 {[%emt 0:02:39]} Qb6 {[%emt 0:01:08]} 18. Bxf5 {[%emt 0:05:15]} exf5 {[%emt 0:00:17]} 19. Be3 {[%emt 0:04:58]} Na5 {[%emt 0:06:55]} 20. Nf4 {[%emt 0:11:41]} Be6 {[%emt 0:02:39]} 21. Kf1 {[%emt 0:05:30]} Nc4 {[%emt 0:02:29]} 22. Bc1 {[%emt 0:00:12]} Rab8 {[%emt 0:02:08]} 23. Nxe6 {[%emt 0:05:29]} fxe6 {[%emt 0:00:23]} 24. Ng5 {[%emt 0:00:57]} Bxg5 {[%emt 0:01:52]} 25. Bxg5 {[%emt 0:00:05]} Qb3 {[%emt 0:01:12]} 26. Kg2 {[%emt 0:02:58]} Qxd1 {[%emt 0:02:47]} 27. Rhxd1 {[%emt 0:01:38]} 1/2-1/2